[Event "3rd FIDE WCCC Blitz U10 2019"]
[Site "Minsk"]
[Date "2019.08.18"]
[Round "7.1"]
[White "Usov, Aleksandr E."]
[Black "Vershinin, Igor"]
[Result "1-0"]
[ECO "B22"]
[WhiteElo "1919"]
[BlackElo "2188"]
[Annotator "NA"]
[PlyCount "190"]
[EventDate "2019.08.18"]
[EventType "swiss"]
[EventCountry "BLR"]
[SourceTitle "playchess.com"]
[Source "ChessBase"]
[SourceQuality "1"]
[TimeControl "300+2"]

1. e4 {[%emt 0:00:00]} c5 {[%emt 0:00:00]} 2. c3 {[%emt 0:00:00]} d5 {[%emt 0:00:00]} 3. exd5 Qxd5 {[%emt 0:00:02]} 4. d4 {[%emt 0:00:00]} cxd4 {[%emt 0:00:01]} 5. Nf3 {[%emt 0:00:01]} Bg4 {[%emt 0:00:41]} 6. Qa4+ {[%emt 0:01:55]} Nc6 {[%emt 0:00:05]} 7. Nxd4 {[%emt 0:00:05]} e5 {[%emt 0:00:58]} 8. Nxc6 {[%emt 0:00:46]} Bd7 {[%emt 0:00:04]} 9. Qc4 {[%emt 0:00:48]} Qxc4 {[%emt 0:00:16]} 10. Bxc4 {[%emt 0:00:01]} Bxc6 {[%emt 0:00:01]} 11. f3 {[%emt 0:00:01]} Nf6 {[%emt 0:00:03]} 12. Be3 {[%emt 0:00:06]} Bd6 {[%emt 0:00:04]} 13. Nd2 {[%emt 0:00:02]} O-O {[%emt 0:00:02]} 14. Kf2 {[%emt 0:00:08]} Rac8 {[%emt 0:00:22]} 15. Bxa7 {[%emt 0:00:19]} b5 {[%emt 0:00:15]} 16. Bd3 {[%emt 0:00:06]} Rfd8 {[%emt 0:00:02]} 17. Bf5 {[%emt 0:00:11]} Ra8 {[%emt 0:00:10]} 18. Be3 {[%emt 0:00:14]} Bc5 {[%emt 0:00:13]} 19. Rhd1 {[%emt 0:00:14]} Bxe3+ {[%emt 0:00:01]} 20. Kxe3 {[%emt 0:00:00]} Nd5+ {[%emt 0:00:00]} 21. Kf2 {[%emt 0:00:02]} Nf4 {[%emt 0:00:31]} 22. g3 {[%emt 0:00:17]} Nd3+ {[%emt 0:00:03]} 23. Bxd3 {[%emt 0:00:01]} Rxd3 {[%emt 0:00:00]} 24. Ke2 {[%emt 0:00:02]} Rad8 {[%emt 0:00:04]} 25. Ne4 {[%emt 0:00:09]} R3d5 {[%emt 0:00:42]} 26. Rxd5 {[%emt 0:00:08]} Bxd5 {[%emt 0:00:01]} 27. b3 {[%emt 0:00:04]} Ra8 {[%emt 0:00:03]} 28. Nc5 {[%emt 0:00:09]} Kf8 {[%emt 0:00:25]} 29. a4 {[%emt 0:00:03]} bxa4 {[%emt 0:00:03]} 30. Rxa4 {[%emt 0:00:03]} Rc8 {[%emt 0:00:15]} 31. b4 {[%emt 0:00:02]} Ke7 {[%emt 0:00:08]} 32. Ra7+ {[%emt 0:00:00]} Kd6 {[%emt 0:00:05]} 33. Ke3 {[%emt 0:00:03]} h5 {[%emt 0:00:11]} 34. h4 {[%emt 0:00:01]} g6 {[%emt 0:00:01]} 35. Ra6+ {[%emt 0:00:02]} Ke7 {[%emt 0:00:05]} 36. Ra1 {[%emt 0:00:01]} f5 {[%emt 0:00:04]} 37. Ra6 {[%emt 0:00:02]} Kf7 {[%emt 0:00:07]} 38. f4 {[%emt 0:00:02]} e4 {[%emt 0:00:01]} 39. Kd4 {[%emt 0:00:02]} Rd8 {[%emt 0:00:03]} 40. Ra7+ {[%emt 0:00:03]} Kf8 {[%emt 0:00:03]} 41. Nd7+ {[%emt 0:00:03]} Ke8 {[%emt 0:00:02]} 42. Nf6+ {[%emt 0:00:01]} Kf8 {[%emt 0:00:02]} 43. Nxd5 {[%emt 0:00:01]} e3 {[%emt 0:00:00]} 44. Kxe3 {[%emt 0:00:04]} Rxd5 {[%emt 0:00:01]} 45. c4 Rd1 {[%emt 0:00:02]} 46. Ra8+ {[%emt 0:00:02]} Ke7 {[%emt 0:00:01]} 47. Ra6 {[%emt 0:00:01]} Kf7 {[%emt 0:00:01]} 48. b5 {[%emt 0:00:01]} Rc1 {[%emt 0:00:01]} 49. Rc6 {[%emt 0:00:01]} Ke7 50. b6 {[%emt 0:00:00]} Kd7 {[%emt 0:00:03]} 51. Rc7+ Kd8 {[%emt 0:00:05]} 52. c5 {[%emt 0:00:02]} Rc3+ {[%emt 0:00:03]} 53. Kf2 {[%emt 0:00:02]} Rc4 {[%emt 0:00:03]} 54. Kg2 {[%emt 0:00:02]} Rc2+ {[%emt 0:00:02]} 55. Kh3 {[%emt 0:00:01]} Rc1 {[%emt 0:00:02]} 56. Rg7 {[%emt 0:00:07]} Rxc5 {[%emt 0:00:03]} 57. b7 {[%emt 0:00:01]} Rb5 {[%emt 0:00:02]} 58. Rxg6 {[%emt 0:00:03]} Rxb7 {[%emt 0:00:03]} 59. Rg5 {[%emt 0:00:00]} Rh7 {[%emt 0:00:04]} 60. Rxf5 {[%emt 0:00:02]} Ke7 {[%emt 0:00:00]} 61. Ra5 {[%emt 0:00:01]} Kf6 {[%emt 0:00:03]} 62. Kg2 {[%emt 0:00:01]} Ke6 {[%emt 0:00:03]} 63. Kf3 {[%emt 0:00:01]} Kf6 64. Rb5 {[%emt 0:00:02]} Ke6 {[%emt 0:00:01]} 65. Ke4 Kf6 66. Rb6+ {[%emt 0:00:01]} Kg7 {[%emt 0:00:02]} 67. Kf5 {[%emt 0:00:01]} Rh8 {[%emt 0:00:02]} 68. Rb7+ {[%emt 0:00:02]} Kh6 {[%emt 0:00:00]} 69. Rb6+ {[%emt 0:00:01]} Kg7 {[%emt 0:00:01]} 70. Kg5 {[%emt 0:00:01]} Rd8 {[%emt 0:00:02]} 71. f5 {[%emt 0:00:01]} Rd4 {[%emt 0:00:01]} 72. Rb7+ {[%emt 0:00:01]} Kf8 {[%emt 0:00:02]} 73. Kxh5 {[%emt 0:00:02]} Rd6 {[%emt 0:00:02]} 74. Kg5 Rd5 75. Kg6 {[%emt 0:00:03]} Rd6+ {[%emt 0:00:01]} 76. f6 {[%emt 0:00:01]} Ke8 {[%emt 0:00:04]} 77. Rb8+ {[%emt 0:00:02]} Kd7 {[%emt 0:00:01]} 78. Kg7 {[%emt 0:00:00]} Rd3 {[%emt 0:00:02]} 79. f7 {[%emt 0:00:02]} Rxg3+ {[%emt 0:00:01]} 80. Kf8 {[%emt 0:00:01]} Rg4 {[%emt 0:00:04]} 81. Rb1 {[%emt 0:00:01]} Rxh4 {[%emt 0:00:03]} 82. Rd1+ {[%emt 0:00:01]} Ke6 {[%emt 0:00:01]} 83. Re1+ {[%emt 0:00:01]} Kd7 {[%emt 0:00:06]} 84. Rg1 {[%emt 0:00:04]} Rf4 {[%emt 0:00:07]} 85. Rg6 {[%emt 0:00:02]} Rf5 {[%emt 0:00:03]} 86. Kg8 {[%emt 0:00:01]} Ke7 {[%emt 0:00:00]} 87. Rg7 {[%emt 0:00:00]} Rf6 {[%emt 0:00:04]} 88. f8=Q+ {[%emt 0:00:02]} Ke6 {[%emt 0:00:00]} 89. Re7+ {[%emt 0:00:04]} Kf5 {[%emt 0:00:00]} 90. Qxf6+ {[%emt 0:00:03]} Kxf6 {[%emt 0:00:00]} 91. Kf8 {[%emt 0:00:01]} Kf5 {[%emt 0:00:01]} 92. Kf7 Kg5 93. Re5+ {[%emt 0:00:02]} Kf4 {[%emt 0:00:00]} 94. Kf6 {[%emt 0:00:01]} Kf3 {[%emt 0:00:01]} 95. Kg5 {[%emt 0:00:01]} Kg3 {[%emt 0:00:00]} 1-0

[Event "3rd FIDE WCCC Blitz U10 2019"]
[Site "Minsk"]
[Date "2019.08.18"]
[Round "7.2"]
[White "Vetokhin, Savva"]
[Black "Korovko, Iakov"]
[Result "1-0"]
[ECO "C04"]
[WhiteElo "2016"]
[BlackElo "1373"]
[Annotator "NA"]
[PlyCount "83"]
[EventDate "2019.08.18"]
[EventType "swiss"]
[EventCountry "BLR"]
[SourceTitle "playchess.com"]
[Source "ChessBase"]
[SourceQuality "1"]
[TimeControl "300+2"]

1. e4 {[%emt 0:00:00]} e6 {[%emt 0:00:00]} 2. d4 {[%emt 0:00:01]} d5 {[%emt 0:00:00]} 3. Nd2 {[%emt 0:00:01]} Nc6 {[%emt 0:00:01]} 4. Ngf3 {[%emt 0:00:05]} Nf6 {[%emt 0:00:01]} 5. Bd3 {[%emt 0:00:07]} Nb4 {[%emt 0:00:07]} 6. e5 {[%emt 0:00:12]} Nxd3+ 7. cxd3 {[%emt 0:00:02]} Nd7 {[%emt 0:00:04]} 8. O-O {[%emt 0:00:02]} Be7 {[%emt 0:00:05]} 9. Nb3 {[%emt 0:00:04]} O-O {[%emt 0:00:06]} 10. Be3 {[%emt 0:00:01]} b6 {[%emt 0:00:07]} 11. Rc1 {[%emt 0:00:03]} Bb7 {[%emt 0:00:08]} 12. Qd2 {[%emt 0:00:04]} Rc8 {[%emt 0:00:22]} 13. Bg5 {[%emt 0:00:18]} Bxg5 {[%emt 0:00:06]} 14. Nxg5 {[%emt 0:00:06]} h6 {[%emt 0:00:07]} 15. Nf3 {[%emt 0:00:07]} Qe7 {[%emt 0:00:08]} 16. Rc2 {[%emt 0:00:03]} c5 {[%emt 0:00:07]} 17. Rfc1 {[%emt 0:00:06]} Rc7 {[%emt 0:00:08]} 18. dxc5 {[%emt 0:00:32]} bxc5 {[%emt 0:00:02]} 19. Na5 {[%emt 0:00:21]} Rfc8 {[%emt 0:00:23]} 20. b4 {[%emt 0:00:05]} Ba6 {[%emt 0:00:09]} 21. bxc5 {[%emt 0:00:35]} Nxc5 {[%emt 0:00:14]} 22. Qb4 {[%emt 0:00:08]} Bxd3 23. Rc3 Na6 {[%emt 0:01:50]} 24. Qxe7 {[%emt 0:00:07]} Rxc3 {[%emt 0:00:00]} 25. Rxc3 {[%emt 0:00:05]} Rxc3 {[%emt 0:00:01]} 26. h3 {[%emt 0:00:07]} Be4 {[%emt 0:00:16]} 27. Qe8+ {[%emt 0:00:04]} Kh7 {[%emt 0:00:01]} 28. Qxf7 {[%emt 0:00:01]} Bxf3 {[%emt 0:00:03]} 29. gxf3 {[%emt 0:00:00]} d4 {[%emt 0:00:00]} 30. Nb3 {[%emt 0:00:14]} d3 {[%emt 0:00:04]} 31. Qf4 {[%emt 0:00:04]} Nc5 {[%emt 0:00:21]} 32. Nxc5 {[%emt 0:00:08]} Rxc5 {[%emt 0:00:01]} 33. Qe4+ {[%emt 0:00:01]} g6 {[%emt 0:00:03]} 34. Qxd3 {[%emt 0:00:01]} a5 {[%emt 0:00:00]} 35. Qd7+ {[%emt 0:00:01]} Kg8 {[%emt 0:00:02]} 36. Qe8+ {[%emt 0:00:02]} Kh7 {[%emt 0:00:01]} 37. Qe7+ {[%emt 0:00:01]} Kg8 {[%emt 0:00:04]} 38. Qxc5 {[%emt 0:00:01]} Kf7 {[%emt 0:00:01]} 39. Qc7+ {[%emt 0:00:01]} Kg8 40. Qxa5 g5 {[%emt 0:00:02]} 41. Qc7 {[%emt 0:00:02]} h5 {[%emt 0:00:01]} 42. a4 {[%emt 0:00:01]} 1-0

[Event "3rd FIDE WCCC Blitz U10 2019"]
[Site "Minsk"]
[Date "2019.08.18"]
[Round "7.3"]
[White "Simbelov, Roman T."]
[Black "Zverev, Lev"]
[Result "1/2-1/2"]
[ECO "C50"]
[WhiteElo "1603"]
[BlackElo "1881"]
[Annotator "NA"]
[PlyCount "72"]
[EventDate "2019.08.18"]
[EventType "swiss"]
[EventCountry "BLR"]
[SourceTitle "playchess.com"]
[Source "ChessBase"]
[SourceQuality "1"]
[TimeControl "300+2"]

1. e4 {[%emt 0:00:00]} e5 {[%emt 0:00:00]} 2. Nf3 {[%emt 0:00:01]} Nc6 {[%emt 0:00:00]} 3. Bc4 {[%emt 0:00:01]} Bc5 {[%emt 0:00:01]} 4. d3 {[%emt 0:00:01]} Nf6 {[%emt 0:00:01]} 5. Nc3 {[%emt 0:00:02]} d6 {[%emt 0:00:04]} 6. Be3 {[%emt 0:00:02]} Bb6 {[%emt 0:00:02]} 7. Qd2 {[%emt 0:00:05]} h6 {[%emt 0:00:02]} 8. h3 {[%emt 0:00:04]} Be6 {[%emt 0:00:04]} 9. Bb3 {[%emt 0:00:02]} Qd7 {[%emt 0:00:02]} 10. g4 {[%emt 0:00:08]} O-O-O {[%emt 0:00:11]} 11. O-O-O {[%emt 0:00:04]} Na5 {[%emt 0:00:37]} 12. d4 {[%emt 0:00:43]} exd4 {[%emt 0:00:45]} 13. Nxd4 {[%emt 0:00:15]} Nxb3+ {[%emt 0:00:06]} 14. Nxb3 {[%emt 0:00:24]} Qe7 {[%emt 0:00:22]} 15. Bxb6 {[%emt 0:00:10]} axb6 {[%emt 0:00:02]} 16. Qe3 {[%emt 0:00:14]} Rhe8 {[%emt 0:00:06]} 17. Rhe1 {[%emt 0:00:14]} Qf8 {[%emt 0:00:08]} 18. Nd4 {[%emt 0:00:06]} Bd7 {[%emt 0:00:26]} 19. Qd2 {[%emt 0:00:21]} Bc6 {[%emt 0:00:16]} 20. f3 {[%emt 0:00:08]} Kb8 {[%emt 0:00:47]} 21. Kb1 {[%emt 0:00:13]} Qe7 {[%emt 0:00:38]} 22. Nf5 {[%emt 0:00:10]} Qf8 {[%emt 0:00:01]} 23. Nd4 {[%emt 0:00:07]} Bd7 24. Re2 {[%emt 0:00:23]} c5 {[%emt 0:00:09]} 25. Ndb5 {[%emt 0:00:12]} Bc6 {[%emt 0:00:03]} 26. Qf4 {[%emt 0:00:17]} Bxb5 {[%emt 0:00:32]} 27. Nxb5 Re6 28. Red2 {[%emt 0:00:07]} Ne8 {[%emt 0:00:04]} 29. e5 {[%emt 0:00:29]} d5 {[%emt 0:00:14]} 30. Rxd5 {[%emt 0:00:03]} Rxd5 {[%emt 0:00:01]} 31. Rxd5 {[%emt 0:00:01]} Nc7 {[%emt 0:00:01]} 32. Nxc7 {[%emt 0:00:20]} Kxc7 {[%emt 0:00:01]} 33. Qa4 {[%emt 0:00:19]} Qe7 {[%emt 0:00:02]} 34. f4 {[%emt 0:00:06]} f6 {[%emt 0:00:01]} 35. Qe4 {[%emt 0:00:09]} fxe5 {[%emt 0:00:05]} 36. Rxe5 {[%emt 0:00:05]} Qd7 {[%emt 0:00:06]} 1/2-1/2

[Event "3rd FIDE WCCC Blitz U10 2019"]
[Site "Minsk"]
[Date "2019.08.18"]
[Round "7.4"]
[White "Gusev, Mikhail"]
[Black "Navoyan, Gagik"]
[Result "0-1"]
[ECO "A46"]
[WhiteElo "1598"]
[BlackElo "1698"]
[Annotator "NA"]
[PlyCount "79"]
[EventDate "2019.08.18"]
[EventType "swiss"]
[EventCountry "BLR"]
[SourceTitle "playchess.com"]
[Source "ChessBase"]
[SourceQuality "1"]
[TimeControl "300+2"]

1. d4 {[%emt 0:00:00]} Nf6 {[%emt 0:00:00]} 2. Nf3 {[%emt 0:00:02]} e6 {[%emt 0:00:00]} 3. e3 {[%emt 0:00:02]} Be7 {[%emt 0:00:11]} 4. Bd3 b6 5. O-O {[%emt 0:00:02]} O-O {[%emt 0:00:02]} 6. c4 {[%emt 0:00:01]} Bb7 {[%emt 0:00:03]} 7. Nc3 {[%emt 0:00:01]} d6 {[%emt 0:00:03]} 8. d5 {[%emt 0:00:02]} e5 {[%emt 0:00:04]} 9. Ng5 {[%emt 0:00:10]} h6 {[%emt 0:00:20]} 10. Nge4 {[%emt 0:00:02]} Nxe4 {[%emt 0:00:04]} 11. Bxe4 {[%emt 0:00:14]} f5 12. Bc2 Qe8 {[%emt 0:01:00]} 13. Ba4 {[%emt 0:00:29]} Qg6 {[%emt 0:00:28]} 14. a3 {[%emt 0:00:21]} a5 {[%emt 0:00:38]} 15. b3 {[%emt 0:00:31]} Na6 {[%emt 0:00:09]} 16. Bb2 {[%emt 0:00:31]} Nc5 {[%emt 0:00:11]} 17. Bc6 {[%emt 0:00:01]} Rab8 {[%emt 0:00:44]} 18. b4 {[%emt 0:00:14]} Na6 {[%emt 0:00:06]} 19. Bxb7 {[%emt 0:00:29]} Rxb7 {[%emt 0:00:01]} 20. Nb5 {[%emt 0:00:17]} Bd8 {[%emt 0:00:34]} 21. Qd2 {[%emt 0:00:11]} f4 {[%emt 0:00:12]} 22. bxa5 {[%emt 0:00:10]} Nc5 {[%emt 0:00:05]} 23. axb6 {[%emt 0:00:11]} f3 {[%emt 0:00:06]} 24. g3 {[%emt 0:00:14]} Rxb6 {[%emt 0:00:05]} 25. Kh1 {[%emt 0:00:10]} Nb3 {[%emt 0:00:05]} 26. Qb4 {[%emt 0:00:15]} Nxa1 {[%emt 0:00:04]} 27. Bxa1 {[%emt 0:00:01]} Qg4 {[%emt 0:00:05]} 28. Rg1 {[%emt 0:00:05]} Rf5 {[%emt 0:00:04]} 29. Qe1 {[%emt 0:00:08]} Rh5 {[%emt 0:00:03]} 30. Qf1 {[%emt 0:00:01]} Rh3 {[%emt 0:00:05]} 31. a4 {[%emt 0:00:17]} Qh5 {[%emt 0:00:02]} 32. Rg2 {[%emt 0:00:01]} fxg2+ {[%emt 0:00:03]} 33. Qxg2 {[%emt 0:00:00]} Qd1+ {[%emt 0:00:04]} 34. Qg1 {[%emt 0:00:02]} Qxg1+ {[%emt 0:00:02]} 35. Kxg1 {[%emt 0:00:01]} Ra6 {[%emt 0:00:01]} 36. Kg2 {[%emt 0:00:06]} Rh5 {[%emt 0:00:04]} 37. Nc3 {[%emt 0:00:01]} Rf5 {[%emt 0:00:03]} 38. e4 {[%emt 0:00:02]} Rf8 {[%emt 0:00:02]} 39. Bb2 {[%emt 0:00:01]} Bg5 {[%emt 0:00:03]} 40. h4 {[%emt 0:00:02]} 0-1

[Event "3rd FIDE WCCC Blitz U10 2019"]
[Site "Minsk"]
[Date "2019.08.18"]
[Round "7.5"]
[White "Dyachuk, Artem"]
[Black "Rudnev, Andrei"]
[Result "0-1"]
[ECO "E73"]
[WhiteElo "1665"]
[BlackElo "1639"]
[Annotator "NA"]
[PlyCount "92"]
[EventDate "2019.08.18"]
[EventType "swiss"]
[EventCountry "BLR"]
[SourceTitle "playchess.com"]
[Source "ChessBase"]
[SourceQuality "1"]
[TimeControl "300+2"]

1. d4 {[%emt 0:00:00]} Nf6 {[%emt 0:00:00]} 2. c4 g6 3. Nc3 {[%emt 0:00:04]} Bg7 {[%emt 0:00:00]} 4. e4 {[%emt 0:00:01]} d6 {[%emt 0:00:01]} 5. Be2 {[%emt 0:00:01]} O-O {[%emt 0:00:03]} 6. Bg5 {[%emt 0:00:01]} Nbd7 {[%emt 0:00:04]} 7. Nf3 {[%emt 0:00:03]} e5 {[%emt 0:00:01]} 8. dxe5 {[%emt 0:00:02]} dxe5 {[%emt 0:00:02]} 9. O-O {[%emt 0:00:03]} Re8 {[%emt 0:00:02]} 10. Rc1 {[%emt 0:00:04]} c6 {[%emt 0:00:03]} 11. Qc2 {[%emt 0:00:12]} Qc7 {[%emt 0:00:03]} 12. Rfd1 {[%emt 0:00:06]} Nc5 {[%emt 0:00:02]} 13. b4 {[%emt 0:00:06]} Ne6 {[%emt 0:00:01]} 14. Be3 {[%emt 0:00:05]} Ng4 {[%emt 0:00:36]} 15. Bd2 {[%emt 0:00:12]} Nd4 {[%emt 0:00:01]} 16. Qb1 {[%emt 0:00:56]} Rd8 {[%emt 0:00:30]} 17. Bg5 {[%emt 0:00:40]} f6 {[%emt 0:00:21]} 18. Bh4 {[%emt 0:00:09]} Be6 {[%emt 0:00:29]} 19. h3 {[%emt 0:01:02]} Nh6 {[%emt 0:00:11]} 20. Qb2 {[%emt 0:00:32]} Nxe2+ {[%emt 0:01:24]} 21. Qxe2 {[%emt 0:00:07]} Nf7 {[%emt 0:00:04]} 22. Nd5 {[%emt 0:00:35]} cxd5 {[%emt 0:00:26]} 23. cxd5 {[%emt 0:00:03]} Qe7 {[%emt 0:00:01]} 24. dxe6 {[%emt 0:00:02]} Qxe6 {[%emt 0:00:01]} 25. Rxd8+ {[%emt 0:00:05]} Rxd8 {[%emt 0:00:01]} 26. Rc7 {[%emt 0:00:08]} Rd7 {[%emt 0:00:16]} 27. Qc4 {[%emt 0:00:16]} Qxc4 {[%emt 0:00:31]} 28. Rxc4 {[%emt 0:00:01]} g5 {[%emt 0:00:01]} 29. Bg3 {[%emt 0:00:02]} Nd6 {[%emt 0:00:09]} 30. Rc5 {[%emt 0:00:10]} Nxe4 {[%emt 0:00:03]} 31. Rc8+ {[%emt 0:00:01]} Kf7 {[%emt 0:00:02]} 32. Ra8 {[%emt 0:00:05]} a6 {[%emt 0:00:03]} 33. a4 {[%emt 0:00:02]} h5 {[%emt 0:00:09]} 34. h4 {[%emt 0:00:09]} g4 {[%emt 0:00:01]} 35. Ne1 {[%emt 0:00:00]} f5 {[%emt 0:00:05]} 36. Bh2 {[%emt 0:00:03]} f4 {[%emt 0:00:04]} 37. Kf1 {[%emt 0:00:01]} Bf6 {[%emt 0:00:09]} 38. f3 {[%emt 0:00:02]} Nd2+ {[%emt 0:00:03]} 39. Ke2 {[%emt 0:00:01]} Bxh4 {[%emt 0:00:05]} 40. Nd3 {[%emt 0:00:01]} Bf6 {[%emt 0:00:03]} 41. Kxd2 {[%emt 0:00:02]} h4 {[%emt 0:00:07]} 42. fxg4 {[%emt 0:00:02]} e4 {[%emt 0:00:01]} 43. Bxf4 {[%emt 0:00:02]} Rxd3+ {[%emt 0:00:01]} 44. Ke2 {[%emt 0:00:01]} Rb3 {[%emt 0:00:03]} 45. g5 {[%emt 0:00:01]} Bg7 {[%emt 0:00:02]} 46. Bd2 {[%emt 0:00:02]} e3 {[%emt 0:00:03]} 0-1

[Event "3rd FIDE WCCC Blitz U10 2019"]
[Site "Minsk"]
[Date "2019.08.18"]
[Round "7.6"]
[White "Toktomushev, Teimur"]
[Black "Boykov, Pavel"]
[Result "0-1"]
[ECO "A48"]
[WhiteElo "1611"]
[BlackElo "1553"]
[Annotator "NA"]
[PlyCount "76"]
[EventDate "2019.08.18"]
[EventType "swiss"]
[EventCountry "BLR"]
[SourceTitle "playchess.com"]
[Source "ChessBase"]
[SourceQuality "1"]
[TimeControl "300+2"]

1. d4 {[%emt 0:00:00]} Nf6 {[%emt 0:00:00]} 2. Nf3 {[%emt 0:00:00]} g6 {[%emt 0:00:00]} 3. Bf4 {[%emt 0:00:02]} Bg7 {[%emt 0:00:00]} 4. e3 {[%emt 0:00:04]} O-O 5. c3 d6 {[%emt 0:00:02]} 6. h3 {[%emt 0:00:03]} Nbd7 {[%emt 0:00:01]} 7. Be2 {[%emt 0:00:02]} b6 {[%emt 0:00:01]} 8. Nbd2 Bb7 9. O-O c5 10. a4 {[%emt 0:00:10]} a6 {[%emt 0:00:34]} 11. Nc4 {[%emt 0:00:20]} b5 {[%emt 0:00:10]} 12. axb5 {[%emt 0:00:37]} axb5 {[%emt 0:00:00]} 13. Na3 {[%emt 0:00:05]} b4 {[%emt 0:00:07]} 14. cxb4 {[%emt 0:00:16]} cxb4 {[%emt 0:00:06]} 15. Nc4 {[%emt 0:00:01]} Qc7 {[%emt 0:00:19]} 16. Qb3 {[%emt 0:00:11]} Nd5 {[%emt 0:00:03]} 17. Bg3 {[%emt 0:00:06]} N7b6 {[%emt 0:00:03]} 18. Rac1 {[%emt 0:00:36]} Qd8 {[%emt 0:00:29]} 19. Nfd2 {[%emt 0:00:34]} Nxc4 {[%emt 0:00:23]} 20. Bxc4 {[%emt 0:00:10]} Qa5 {[%emt 0:00:26]} 21. Kh2 {[%emt 0:00:24]} Nf6 {[%emt 0:00:21]} 22. Be2 {[%emt 0:00:19]} Bd5 {[%emt 0:00:13]} 23. Bc4 {[%emt 0:00:12]} Bxc4 {[%emt 0:00:27]} 24. Nxc4 {[%emt 0:00:04]} Qb5 {[%emt 0:00:01]} 25. Ra1 {[%emt 0:00:04]} Nd5 {[%emt 0:00:09]} 26. Bh4 {[%emt 0:00:38]} h6 {[%emt 0:00:39]} 27. Nd2 {[%emt 0:00:23]} g5 {[%emt 0:00:07]} 28. Bg3 {[%emt 0:00:02]} Nb6 {[%emt 0:00:10]} 29. h4 {[%emt 0:00:14]} Rfc8 {[%emt 0:00:31]} 30. Rfc1 {[%emt 0:00:06]} Bf6 {[%emt 0:00:06]} 31. hxg5 {[%emt 0:00:02]} hxg5 {[%emt 0:00:01]} 32. Rxc8+ {[%emt 0:00:03]} Rxc8 {[%emt 0:00:02]} 33. Ra7 {[%emt 0:00:05]} Kg7 {[%emt 0:00:08]} 34. Kg1 {[%emt 0:00:09]} Rc1+ {[%emt 0:00:04]} 35. Kh2 {[%emt 0:00:00]} Qe8 {[%emt 0:00:03]} 36. Kh3 {[%emt 0:00:07]} Qc8+ {[%emt 0:00:06]} 37. Kh2 {[%emt 0:00:02]} Qh8+ {[%emt 0:00:01]} 38. Bh4 {[%emt 0:00:02]} Qxh4# {[%emt 0:00:01] Qd1} 0-1

[Event "3rd FIDE WCCC Blitz U10 2019"]
[Site "Minsk"]
[Date "2019.08.18"]
[Round "8.1"]
[White "Vetokhin, Savva"]
[Black "Usov, Aleksandr E."]
[Result "0-1"]
[ECO "B15"]
[WhiteElo "2016"]
[BlackElo "1919"]
[Annotator "NA"]
[PlyCount "92"]
[EventDate "2019.08.18"]
[EventType "swiss"]
[EventCountry "BLR"]
[SourceTitle "playchess.com"]
[Source "ChessBase"]
[SourceQuality "1"]
[TimeControl "300+2"]

1. e4 {[%emt 0:00:00]} c6 {[%emt 0:00:00]} 2. d4 {[%emt 0:00:00]} d5 {[%emt 0:00:00]} 3. Nc3 {[%emt 0:00:00]} dxe4 4. Nxe4 Nf6 {[%emt 0:00:04]} 5. Nxf6+ {[%emt 0:00:00]} exf6 {[%emt 0:00:01]} 6. c3 {[%emt 0:00:00]} Bd6 {[%emt 0:00:01]} 7. Bd3 {[%emt 0:00:02]} O-O {[%emt 0:00:02]} 8. Ne2 {[%emt 0:00:01]} Re8 {[%emt 0:00:00]} 9. O-O {[%emt 0:00:01]} h5 {[%emt 0:00:03]} 10. Bf4 {[%emt 0:00:06]} Be6 {[%emt 0:00:16]} 11. Qd2 {[%emt 0:00:04]} g6 {[%emt 0:00:46]} 12. Bxd6 {[%emt 0:00:02]} Qxd6 {[%emt 0:00:01]} 13. Nf4 {[%emt 0:00:04]} Nd7 {[%emt 0:00:17]} 14. Rfe1 {[%emt 0:00:03]} Nf8 {[%emt 0:00:07]} 15. Rad1 {[%emt 0:00:18]} b5 {[%emt 0:01:08]} 16. b3 {[%emt 0:00:05]} Rad8 {[%emt 0:00:08]} 17. Be4 {[%emt 0:00:22]} f5 {[%emt 0:00:22]} 18. Bf3 {[%emt 0:00:04]} Bd5 {[%emt 0:00:37]} 19. Bxd5 {[%emt 0:00:21]} cxd5 {[%emt 0:00:02]} 20. Nd3 {[%emt 0:00:00]} Nd7 {[%emt 0:00:09]} 21. Rxe8+ {[%emt 0:00:12]} Rxe8 22. Re1 Re4 {[%emt 0:00:46]} 23. f3 {[%emt 0:00:04]} Re6 {[%emt 0:00:03]} 24. Re2 {[%emt 0:00:45]} Qe7 {[%emt 0:00:14]} 25. Kf2 {[%emt 0:00:03]} Qh4+ {[%emt 0:00:04]} 26. Kg1 {[%emt 0:00:05]} Qe7 {[%emt 0:00:04]} 27. Nf4 {[%emt 0:00:13]} Rxe2 {[%emt 0:00:05]} 28. Qxe2 {[%emt 0:00:03]} Qd6 {[%emt 0:00:15]} 29. Nd3 {[%emt 0:00:06]} Kf8 {[%emt 0:00:02]} 30. Qe3 {[%emt 0:00:07]} Qc7 {[%emt 0:00:07]} 31. Nb4 {[%emt 0:00:03]} Nb6 {[%emt 0:00:05]} 32. Na6 {[%emt 0:00:06]} Qe7 {[%emt 0:00:02]} 33. Qxe7+ {[%emt 0:00:06]} Kxe7 {[%emt 0:00:01]} 34. Nc7 {[%emt 0:00:01]} b4 35. Nxd5+ {[%emt 0:00:06]} Nxd5 {[%emt 0:00:07]} 36. c4 {[%emt 0:00:04]} Nc3 {[%emt 0:00:01]} 37. d5 {[%emt 0:00:03]} Nxa2 {[%emt 0:00:02]} 38. c5 {[%emt 0:00:00]} Nc3 {[%emt 0:00:01]} 39. d6+ {[%emt 0:00:01]} Kd7 {[%emt 0:00:01]} 40. Kf2 {[%emt 0:00:01]} a5 {[%emt 0:00:01]} 41. Ke3 {[%emt 0:00:01]} a4 {[%emt 0:00:00]} 42. bxa4 {[%emt 0:00:02]} Nxa4 {[%emt 0:00:01]} 43. Kd3 {[%emt 0:00:01]} b3 {[%emt 0:00:02]} 44. Kd2 {[%emt 0:00:05]} Nxc5 {[%emt 0:00:01]} 45. Kc3 {[%emt 0:00:00]} Kxd6 46. f4 Kd5 {[%emt 0:00:02] Kd4+} 0-1